fUSD/lending_fUSD_20250611
["ID","MTS","AMOUNT","RATE_DAILY","PERIOD"]
[365365475,1749619845705,-490.0,0.00016438,2]
[365365477,1749619845716,-487.93,0.00016438,2]
[365365479,1749619845726,-490.0,0.00016438,2]
[365365481,1749619845736,-490.0,0.00016438,2]
[365365483,1749619845746,-377.98,0.00016438,2]
[365365485,1749619845757,-369.6,0.00016438,2]
[365365487,1749619845767,-569.17,0.00016438,2]
[365365489,1749619845777,-490.0,0.00016438,2]
[365365491,1749619845787,-480.0,0.00016438,2]
[365365493,1749619845797,-490.0,0.00016438,2]
[365365495,1749619845807,-237.34570748,0.00016438,2]
[365365498,1749619845817,-490.0,0.00016438,2]
[365365500,1749619845827,-490.0,0.00016438,2]
[365365502,1749619845837,-490.0,0.00016438,2]
[365365504,1749619845847,-490.0,0.00016438,2]
[365365506,1749619845857,-6058.15,0.00016438,2]
[365365508,1749619845866,-480.0,0.00016438,2]
[365365510,1749619845876,-490.0,0.00016438,2]
[365365512,1749619845886,-197.91,0.00016438,2]
[365365514,1749619845896,-546.39,0.00016438,2]
[365365516,1749619845906,-490.0,0.00016438,2]
[365365518,1749619845916,-490.0,0.00016438,2]
[365365520,1749619845925,-490.0,0.00016438,2]
[365365522,1749619845935,-490.0,0.00016438,2]
[365365524,1749619845945,-490.0,0.00016438,2]
[365365526,1749619845954,-490.0,0.00016438,2]
[365365528,1749619845964,-490.0,0.00016438,2]
[365365530,1749619845975,-490.0,0.00016438,2]
[365365532,1749619845985,-490.0,0.00016438,2]
[365365534,1749619845995,-490.0,0.00016438,2]
[365365536,1749619846005,-490.0,0.00016438,2]
[365365538,1749619846016,-490.0,0.00016438,2]
[365365540,1749619846026,-174.95813632,0.00016438,2]
[365365542,1749619846035,-490.0,0.00016438,2]
[365365544,1749619846045,-452.29243193,0.00016438,2]
[365365546,1749619846055,-194.47,0.00016438,2]
[365365548,1749619846066,-490.0,0.00016438,2]
[365365550,1749619846076,-1652.69,0.00016438,2]
[365365552,1749619846087,-291.94979356,0.00016438,2]
[365365554,1749619846097,-490.0,0.00016438,2]
[365365556,1749619846108,-490.0,0.00016438,2]
[365365558,1749619846118,-457.099198,0.00016438,2]
[365365560,1749619846127,-490.0,0.00016438,2]
[365365562,1749619846137,-490.0,0.00016438,2]
[365365565,1749619846148,-490.0,0.00016438,2]
[365365567,1749619846158,-559.93745221,0.00016438,2]
[365365569,1749619846167,-490.0,0.00016438,2]
[365365571,1749619846177,-196.63303184,0.00016438,2]
[365365573,1749619846187,-490.0,0.00016438,2]
[365365575,1749619846196,-490.0,0.00016438,2]
[365365577,1749619846206,-490.0,0.00016438,2]
[365365579,1749619846217,-606.10398746,0.00016438,2]
[365365581,1749619846228,-490.0,0.00016438,2]
[365365583,1749619846237,-490.0,0.00016438,2]
[365365585,1749619846247,-490.0,0.00016438,2]
[365365587,1749619846257,-520.74963467,0.00016438,2]
[365365589,1749619846266,-490.0,0.00016438,2]
[365365591,1749619846276,-510.82,0.00016438,2]
[365365593,1749619846286,-472.05501382,0.00016438,2]
[365365595,1749619846295,-490.0,0.00016438,2]
[365365597,1749619846305,-490.0,0.00016438,2]
[365365599,1749619846315,-490.0,0.00016438,2]
[365365601,1749619846324,-490.0,0.00016438,2]
[365365603,1749619846333,-480.68030777,0.00016438,2]
[365365605,1749619846343,-599.62638877,0.00016438,2]
[365365607,1749619846354,-490.0,0.00016438,2]
[365365609,1749619846364,-490.0,0.00016438,2]
[365365611,1749619846374,-480.0,0.00016438,2]
[365365613,1749619846383,-490.0,0.00016438,2]
[365365615,1749619846393,-480.0,0.00016438,2]
[365365617,1749619846403,-1110.23633006,0.00016438,2]
[365365619,1749619846412,-490.0,0.00016438,2]
[365365621,1749619846422,-490.0,0.00016438,2]
[365365623,1749619846431,-300.77349848,0.00016438,2]
[365365625,1749619846441,-490.0,0.00016438,2]
[365365627,1749619846451,-576.54,0.00016438,2]
[365365629,1749619846460,-490.0,0.00016438,2]
[365365631,1749619846470,-480.0,0.00016438,2]
[365365633,1749619846479,-490.0,0.00016438,2]
[365365635,1749619846489,-480.0,0.00016438,2]
[365365637,1749619846499,-462.28424384,0.00016438,2]
[365365660,1749619846719,-490.0,0.00016438,2]
[365365662,1749619846731,-490.0,0.00016438,2]
[365365664,1749619846740,-357.73732257,0.00016438,2]
[365365666,1749619846750,-490.0,0.00016438,2]
[365365668,1749619846760,-490.0,0.00016438,2]
[365365671,1749619846770,-490.0,0.00016438,2]
[365365673,1749619846780,-553.74,0.00016438,2]
[365365675,1749619846790,-490.0,0.00016438,2]
[365365677,1749619846800,-490.0,0.00016438,2]
[365365679,1749619846810,-490.0,0.00016438,2]
[365365681,1749619846820,-351.69057431,0.00016438,2]
[365365683,1749619846829,-480.0,0.00016438,2]
[365365685,1749619846839,-490.0,0.00016438,2]
[365365687,1749619846849,-490.0,0.00016438,2]
[365365689,1749619846859,-353.52890249,0.00016438,2]
[365365691,1749619846869,-490.0,0.00016438,2]
[365365693,1749619846879,-490.0,0.00016438,2]
[365365695,1749619846888,-490.0,0.00016438,2]
[365365697,1749619846898,-490.0,0.00016438,2]
[365365699,1749619846908,-338.31769312,0.00016438,2]
[365365701,1749619846918,-490.0,0.00016438,2]
[365365703,1749619846928,-490.0,0.00016438,2]
[365365705,1749619846938,-490.0,0.00016438,2]
[365365707,1749619846948,-490.0,0.00016438,2]
[365365710,1749619846961,-480.0,0.00016438,2]
[365365712,1749619846972,-490.0,0.00016438,2]
[365365714,1749619846981,-558.99,0.00016438,2]
[365365716,1749619846992,-490.0,0.00016438,2]
[365365718,1749619847002,-350.79829983,0.00016438,2]
[365365720,1749619847012,-480.0,0.00016438,2]
[365365722,1749619847022,-490.0,0.00016438,2]
[365365724,1749619847032,-500.0,0.00016502,2]
[365365726,1749619847042,-529.51,0.00016601,2]
[365365728,1749619847051,-500.0,0.00016601,2]
[365365730,1749619847061,-500.0,0.00016601,2]
[365365732,1749619847071,-500.0,0.00016601,2]
[365365734,1749619847081,-272.48063569,0.00016602,2]
[365365736,1749619847090,-430.88683018,0.00016602,2]
[365365738,1749619847100,-470.0,0.00016602,2]
[365365740,1749619847110,-490.0,0.00016602,2]
[365365742,1749619847119,-432.80047405,0.00016602,2]
[365365744,1749619847129,-470.0,0.00016602,2]
[365365745,1749619847138,-490.0,0.00016602,2]
[365365746,1749619847148,-490.0,0.00016602,2]
[365365747,1749619847158,-406.20229605,0.00016602,2]
[365365748,1749619847167,-413.57473224,0.00016602,2]
[365365749,1749619847177,-490.0,0.00016602,2]
[365365750,1749619847186,-250.0,0.00016602,2]
[365365751,1749619847196,-474.63265422,0.00016602,2]
[365365752,1749619847206,-443.42159325,0.00016602,2]
[365365753,1749619847216,-490.0,0.00016602,2]
[365365755,1749619847225,-490.0,0.00016602,2]
[365365757,1749619847235,-490.0,0.00016602,2]
[365365759,1749619847245,-490.0,0.00016602,2]
[365365761,1749619847254,-490.0,0.00016602,2]
[365365763,1749619847264,-490.0,0.00016602,2]
[365365765,1749619847273,-490.0,0.00016602,2]
[365365767,1749619847283,-490.0,0.00016602,2]
[365365769,1749619847292,-490.0,0.00016602,2]
[365365771,1749619847301,-490.0,0.00016602,2]
[365365773,1749619847311,-490.0,0.00016602,2]
[365365775,1749619847320,-474.04946964,0.00016602,2]
[365365777,1749619847330,-490.0,0.00016602,2]
[365365779,1749619847339,-451.32946001,0.00016602,2]
[365365781,1749619847347,-414.71141448,0.00016602,2]
[365365783,1749619847357,-490.0,0.00016602,2]
[365365785,1749619847366,-490.0,0.00016602,2]
[365365787,1749619847378,-490.0,0.00016602,2]
[365365789,1749619847387,-480.0,0.00016602,2]
[365365791,1749619847397,-490.0,0.00016602,2]
[365365793,1749619847406,-455.73409513,0.00016602,2]
[365365795,1749619847416,-439.67925254,0.00016602,2]
[365365797,1749619847425,-490.0,0.00016602,2]
[365365805,1749619847491,-490.0,0.00016602,2]
[365365807,1749619847501,-480.0,0.00016602,2]
[365365809,1749619847511,-215.66,0.00016602,2]
[365365811,1749619847520,-480.0,0.00016602,2]
[365365813,1749619847530,-480.0,0.00016602,2]
[365365815,1749619847539,-480.0,0.00016602,2]
[365365817,1749619847551,-480.0,0.00016602,2]
[365365819,1749619847561,-480.0,0.00016602,2]
[365365821,1749619847570,-490.0,0.00016602,2]
[365365823,1749619847579,-480.0,0.00016602,2]
[365365825,1749619847590,-480.0,0.00016602,2]
[365365827,1749619847601,-480.0,0.00016602,2]
[365365829,1749619847610,-480.0,0.00016602,2]
[365365831,1749619847620,-480.0,0.00016602,2]
[365365833,1749619847629,-480.0,0.00016602,2]
[365365835,1749619847639,-278.93,0.00016602,2]
[365365837,1749619847649,-490.0,0.00016602,2]
[365365839,1749619847658,-490.0,0.00016602,2]
[365365841,1749619847667,-490.0,0.00016602,2]
[365365843,1749619847676,-478.02460132,0.00016602,2]
[365365845,1749619847686,-298.36347787,0.00016602,2]
[365365847,1749619847695,-451.69,0.00016602,2]
[365365849,1749619847704,-490.0,0.00016602,2]
[365365851,1749619847713,-389.96652571,0.00016602,2]
[365365853,1749619847723,-251.23861959,0.00016602,2]
[365365855,1749619847732,-599.98489485,0.00016602,2]
[365365857,1749619847741,-490.0,0.00016602,2]
[365365859,1749619847751,-490.0,0.00016602,2]
[365365861,1749619847760,-490.0,0.00016602,2]
[365365863,1749619847769,-490.0,0.00016602,2]
[365365865,1749619847779,-490.0,0.00016602,2]
[365365867,1749619847788,-490.0,0.00016602,2]
[365365869,1749619847798,-574.46727609,0.00016602,2]
[365365871,1749619847808,-425.61506885,0.00016602,2]
[365365873,1749619847818,-490.0,0.00016602,2]
[365365875,1749619847827,-435.79447665,0.00016602,2]
[365365877,1749619847837,-490.0,0.00016602,2]
[365365879,1749619847846,-490.0,0.00016602,2]
[365365881,1749619847856,-490.0,0.00016602,2]
[365365883,1749619847865,-490.0,0.00016602,2]
[365365885,1749619847874,-490.0,0.00016602,2]
[365365887,1749619847883,-490.0,0.00016602,2]
[365365889,1749619847892,-549.50974262,0.00016602,2]
[365365891,1749619847901,-490.0,0.00016602,2]
[365365893,1749619847911,-440.0,0.00016602,2]
[365365895,1749619847920,-490.0,0.00016602,2]
[365365897,1749619847930,-490.0,0.00016602,2]
[365365899,1749619847939,-554.1535214,0.00016602,2]
[365365901,1749619847948,-490.0,0.00016602,2]
[365365903,1749619847957,-490.0,0.00016602,2]
[365365905,1749619847968,-452.22815596,0.00016602,2]
[365365907,1749619847977,-490.0,0.00016602,2]
[365365909,1749619847987,-490.0,0.00016602,2]
[365365911,1749619847997,-490.0,0.00016602,2]
[365365913,1749619848007,-490.0,0.00016602,2]
[365365915,1749619848017,-438.17285379,0.00016602,2]
[365365917,1749619848026,-490.0,0.00016602,2]
[365365919,1749619848036,-490.0,0.00016602,2]
[365365921,1749619848047,-490.0,0.00016602,2]
[365365923,1749619848057,-490.0,0.00016602,2]
[365365925,1749619848067,-490.0,0.00016602,2]
[365365927,1749619848077,-490.0,0.00016602,2]
[365365929,1749619848087,-490.0,0.00016602,2]
[365365931,1749619848097,-490.0,0.00016602,2]
[365365933,1749619848107,-490.0,0.00016602,2]
[365365935,1749619848117,-490.0,0.00016602,2]
[365365937,1749619848127,-490.0,0.00016602,2]
[365365939,1749619848137,-490.0,0.00016602,2]
[365365941,1749619848147,-490.0,0.00016602,2]
[365365943,1749619848158,-490.0,0.00016602,2]
[365365945,1749619848169,-440.0,0.00016602,2]
[365365947,1749619848180,-490.0,0.00016602,2]
[365365949,1749619848189,-490.0,0.00016602,2]
[365365951,1749619848200,-460.0,0.00016602,2]
[365365952,1749619848210,-324.64609674,0.00016602,2]
[365365955,1749619848221,-389.2137551,0.00016602,2]
[365365956,1749619848231,-490.0,0.00016602,2]
[365365959,1749619848241,-462.62606444,0.00016602,2]
[365365960,1749619848252,-472.44838582,0.00016602,2]
[365365961,1749619848262,-438.58569391,0.00016602,2]
[365365962,1749619848272,-455.11191713,0.00016602,2]
[365365963,1749619848281,-490.0,0.00016602,2]
[365365964,1749619848291,-270.0,0.00016602,2]
[365365965,1749619848300,-517.77480748,0.00016602,2]
[365365966,1749619848310,-627.98286365,0.00016602,2]
[365365967,1749619848319,-490.0,0.00016602,2]
[365365968,1749619848328,-490.0,0.00016602,2]
[365365969,1749619848337,-276.0680773,0.00016602,2]
[365365970,1749619848347,-390.7680368,0.00016602,2]
[365365972,1749619848357,-490.0,0.00016602,2]
[365365974,1749619848366,-490.0,0.00016602,2]
[365365976,1749619848376,-491.74435,0.00016602,2]
[365365978,1749619848385,-490.0,0.00016602,2]
[365365980,1749619848395,-490.0,0.00016602,2]
[365365981,1749619848404,-454.21196125,0.00016602,2]
[365365983,1749619848415,-163.74334443,0.00016602,2]
[365365984,1749619848424,-490.0,0.00016602,2]
[365365985,1749619848434,-490.0,0.00016602,2]
[365365986,1749619848444,-490.0,0.00016602,2]
[365365987,1749619848454,-419.14068687,0.00016602,2]
[365365988,1749619848464,-373.99514052,0.00016602,2]
[365365989,1749619848474,-409.55307992,0.00016602,2]
[365365990,1749619848484,-490.0,0.00016602,2]
[365365991,1749619848494,-490.0,0.00016602,2]
[365365992,1749619848503,-490.0,0.00016602,2]
[365365993,1749619848514,-490.0,0.00016602,2]
[365365994,1749619848523,-490.0,0.00016602,2]
[365365995,1749619848532,-490.0,0.00016602,2]
[365365996,1749619848542,-198.56453762,0.00016602,2]
[365365997,1749619848555,-490.0,0.00016602,2]
[365365998,1749619848564,-386.59421081,0.00016602,2]
[365365999,1749619848574,-450.57627432,0.00016602,2]
[365366000,1749619848583,-490.0,0.00016602,2]
[365366001,1749619848593,-490.0,0.00016602,2]
[365366002,1749619848603,-490.0,0.00016602,2]
[365366003,1749619848613,-490.0,0.00016602,2]
[365366004,1749619848624,-490.0,0.00016602,2]
[365366005,1749619848633,-490.0,0.00016602,2]
[365366006,1749619848643,-490.0,0.00016602,2]
[365366007,1749619848652,-490.0,0.00016602,2]
[365366008,1749619848662,-490.0,0.00016602,2]
[365366009,1749619848672,-442.52279413,0.00016602,2]
[365366010,1749619848681,-490.0,0.00016602,2]
[365366011,1749619848690,-515.59353956,0.00016602,2]
[365366012,1749619848700,-490.0,0.00016602,2]
[365366013,1749619848709,-490.0,0.00016602,2]
[365366014,1749619848719,-507.69864256,0.00016602,2]
[365366015,1749619848729,-503.97494755,0.00016602,2]
[365366016,1749619848738,-490.0,0.00016602,2]
[365366017,1749619848749,-490.0,0.00016602,2]
[365366018,1749619848759,-419.55666659,0.00016602,2]
[365366019,1749619848768,-511.51749845,0.00016602,2]
[365366020,1749619848778,-567.95281674,0.00016602,2]
[365366021,1749619848788,-435.40023008,0.00016602,2]
[365366022,1749619848799,-490.0,0.00016602,2]
[365366023,1749619848809,-492.69278323,0.00016602,2]
[365366024,1749619848819,-490.0,0.00016602,2]
[365366025,1749619848829,-275.14,0.00016602,2]
[365366026,1749619848838,-449.22922567,0.00016602,2]
[365366027,1749619848848,-362.2294992,0.00016602,2]
[365366028,1749619848858,-490.0,0.00016602,2]
[365366029,1749619848867,-426.09619421,0.00016602,2]
[365366030,1749619848877,-490.0,0.00016602,2]
[365366031,1749619848886,-250.04144074,0.00016602,2]
[365366032,1749619848896,-490.0,0.00016602,2]
[365366033,1749619848906,-490.0,0.00016602,2]
[365366034,1749619848915,-490.0,0.00016602,2]
[365366035,1749619848925,-490.0,0.00016602,2]
[365366036,1749619848934,-490.0,0.00016602,2]
[365366037,1749619848945,-619.85122872,0.00016602,2]
[365366038,1749619848955,-300.0,0.00016602,2]
[365366039,1749619848964,-490.0,0.00016602,2]
[365366040,1749619848974,-490.0,0.00016602,2]
[365366041,1749619848983,-490.0,0.00016602,2]
[365366042,1749619848994,-359.01458096,0.00016602,2]
[365366043,1749619849004,-490.0,0.00016602,2]
[365366044,1749619849014,-490.0,0.00016602,2]
[365366045,1749619849024,-490.0,0.00016602,2]
[365366046,1749619849034,-490.0,0.00016602,2]
[365366047,1749619849044,-410.09033037,0.00016602,2]
[365366048,1749619849054,-490.0,0.00016602,2]
[365366049,1749619849064,-490.0,0.00016602,2]
[365366050,1749619849074,-490.0,0.00016602,2]
[365366051,1749619849084,-359.63694242,0.00016602,2]
[365366052,1749619849094,-627.69538244,0.00016602,2]
[365366053,1749619849104,-490.0,0.00016602,2]
[365366054,1749619849114,-400.01901693,0.00016602,2]
[365366055,1749619849123,-484.46209704,0.00016602,2]
[365366056,1749619849133,-536.81,0.00016602,2]
[365366057,1749619849143,-490.0,0.00016602,2]
[365366058,1749619849154,-490.0,0.00016602,2]
[365366059,1749619849163,-490.0,0.00016602,2]
[365366060,1749619849173,-490.0,0.00016602,2]
[365366061,1749619849182,-490.0,0.00016602,2]
[365366062,1749619849192,-490.0,0.00016602,2]
[365366063,1749619849202,-493.14778333,0.00016602,2]
[365366064,1749619849212,-860.96,0.00016602,2]
[365366065,1749619849221,-452.39352307,0.00016602,2]
[365366066,1749619849231,-490.0,0.00016602,2]
[365366067,1749619849241,-490.0,0.00016602,2]
[365366068,1749619849250,-490.0,0.00016602,2]
[365366069,1749619849260,-490.0,0.00016602,2]
[365366070,1749619849269,-596.82599765,0.00016602,2]
[365366071,1749619849279,-490.0,0.00016602,2]
[365366072,1749619849289,-490.0,0.00016602,2]
[365366073,1749619849299,-513.99483557,0.00016602,2]
[365366074,1749619849309,-490.0,0.00016602,2]
[365366075,1749619849318,-417.91944084,0.00016602,2]
[365366076,1749619849328,-490.0,0.00016602,2]
[365366077,1749619849338,-490.0,0.00016602,2]
[365366078,1749619849348,-490.0,0.00016602,2]
[365366079,1749619849358,-490.0,0.00016602,2]
[365366080,1749619849368,-490.0,0.00016602,2]
[365366081,1749619849378,-490.0,0.00016602,2]
[365366082,1749619849388,-449.09515624,0.00016602,2]
[365366083,1749619849398,-490.0,0.00016602,2]
[365366084,1749619849408,-490.0,0.00016602,2]
[365366085,1749619849418,-490.0,0.00016602,2]
[365366086,1749619849429,-490.0,0.00016602,2]
[365366087,1749619849439,-447.39108074,0.00016602,2]
[365366088,1749619849449,-490.0,0.00016602,2]
[365366089,1749619849459,-331.25992115,0.00016602,2]
[365366090,1749619849469,-445.47312374,0.00016602,2]
[365366091,1749619849479,-490.0,0.00016602,2]
[365366092,1749619849488,-490.0,0.00016602,2]
[365366093,1749619849498,-451.03578424,0.00016602,2]
[365366094,1749619849508,-502.76,0.00016602,2]
[365366095,1749619849517,-490.0,0.00016602,2]
[365366096,1749619849527,-490.0,0.00016602,2]
[365366097,1749619849537,-490.0,0.00016602,2]
[365366098,1749619849548,-490.0,0.00016602,2]
[365366099,1749619849558,-490.0,0.00016602,2]
[365366100,1749619849568,-490.0,0.00016602,2]
[365366101,1749619849577,-490.0,0.00016602,2]
[365366102,1749619849587,-490.0,0.00016602,2]
[365366103,1749619849597,-490.0,0.00016602,2]
[365366104,1749619849607,-490.0,0.00016602,2]
[365366105,1749619849617,-173.92309667,0.00016602,2]
[365366106,1749619849628,-490.0,0.00016602,2]
[365366107,1749619849638,-490.0,0.00016602,2]
[365366108,1749619849647,-447.19215562,0.00016602,2]
[365366109,1749619849657,-450.40672971,0.00016602,2]
[365366110,1749619849666,-495.95069093,0.00016602,2]
[365366111,1749619849676,-450.43224772,0.00016602,2]
[365366112,1749619849685,-490.0,0.00016602,2]
[365366113,1749619849695,-451.4644023,0.00016602,2]
[365366114,1749619849704,-490.0,0.00016602,2]
[365366115,1749619849713,-447.94156852,0.00016602,2]
[365366116,1749619849723,-376.82,0.00016602,2]
[365366117,1749619849733,-490.0,0.00016602,2]
[365366118,1749619849742,-481.15410866,0.00016602,2]
[365366119,1749619849752,-490.0,0.00016602,2]
[365366120,1749619849762,-490.0,0.00016602,2]
[365366121,1749619849772,-340.70823461,0.00016602,2]
[365366122,1749619849781,-490.0,0.00016602,2]
[365366123,1749619849790,-490.0,0.00016602,2]
[365366124,1749619849801,-490.0,0.00016602,2]
[365366125,1749619849810,-490.0,0.00016602,2]
[365366126,1749619849820,-157.93412532,0.00016602,2]
[365366127,1749619849829,-490.0,0.00016602,2]
[365366128,1749619849838,-490.0,0.00016602,2]
[365366129,1749619849847,-490.0,0.00016602,2]
[365366130,1749619849857,-490.0,0.00016602,2]
[365366131,1749619849867,-250.4585426,0.00016602,2]
[365366132,1749619849877,-6058.15,0.00016602,2]
[365366133,1749619849886,-490.0,0.00016602,2]
[365366134,1749619849896,-546.39,0.00016602,2]
[365366135,1749619849906,-490.0,0.00016602,2]
[365366136,1749619849916,-490.0,0.00016602,2]
[365366137,1749619849926,-432.55858138,0.00016602,2]
[365366138,1749619849936,-490.0,0.00016602,2]
[365366139,1749619849945,-490.0,0.00016602,2]
[365366140,1749619849955,-490.0,0.00016602,2]
[365366141,1749619849965,-490.0,0.00016602,2]
[365366142,1749619849975,-392.33331502,0.00016602,2]
[365366143,1749619849986,-460.03976638,0.00016602,2]
[365366144,1749619849996,-490.0,0.00016602,2]
[365366145,1749619850006,-1652.69,0.00016602,2]
[365366146,1749619850016,-490.0,0.00016602,2]
[365366147,1749619850027,-490.0,0.00016602,2]
[365366148,1749619850036,-490.0,0.00016602,2]
[365366149,1749619850046,-216.40827564,0.00016602,2]
[365366150,1749619850056,-490.0,0.00016602,2]
[365366151,1749619850066,-490.0,0.00016602,2]
[365366152,1749619850076,-251.71309299,0.00016602,2]
[365366153,1749619850085,-304.83200098,0.00016602,2]
[365366154,1749619850095,-490.0,0.00016602,2]
[365366155,1749619850106,-361.72889939,0.00016602,2]
[365366156,1749619850115,-510.82,0.00016602,2]
[365366157,1749619850125,-490.0,0.00016602,2]
[365366158,1749619850135,-490.0,0.00016602,2]
[365366159,1749619850145,-490.0,0.00016602,2]
[365366160,1749619850155,-490.0,0.00016602,2]
[365366161,1749619850165,-490.0,0.00016602,2]
[365366162,1749619850174,-294.99130217,0.00016602,2]
[365366163,1749619850184,-490.0,0.00016602,2]
[365366164,1749619850194,-408.87237384,0.00016602,2]
[365366165,1749619850204,-490.0,0.00016602,2]
[365366166,1749619850214,-490.0,0.00016602,2]
[365366167,1749619850224,-490.0,0.00016602,2]
[365366168,1749619850234,-466.89,0.00016602,2]
[365366169,1749619850244,-238.54,0.00016602,2]
[365366170,1749619850254,-490.0,0.00016602,2]
[365366171,1749619850264,-431.8,0.00016602,2]
[365366172,1749619850274,-310.58534556,0.00016602,2]
[365366173,1749619850285,-490.0,0.00016602,2]
[365366174,1749619850295,-617.12205838,0.00016602,2]
[365366175,1749619850305,-404.72102835,0.00016602,2]
[365366176,1749619850314,-490.0,0.00016602,2]
[365366177,1749619850324,-490.0,0.00016602,2]
[365366178,1749619850333,-490.0,0.00016602,2]
[365366179,1749619850343,-490.0,0.00016602,2]
[365366180,1749619850353,-490.0,0.00016602,2]
[365366181,1749619850362,-490.0,0.00016602,2]
[365366182,1749619850371,-212.14796933,0.00016602,2]
[365366183,1749619850381,-490.0,0.00016602,2]
[365366184,1749619850390,-490.0,0.00016602,2]
[365366185,1749619850400,-207.27034936,0.00016602,2]
[365366186,1749619850410,-490.0,0.00016602,2]
[365366187,1749619850419,-490.0,0.00016602,2]
[365366188,1749619850429,-150.0,0.00016684,2]
[365366189,1749619850438,-150.0,0.00016684,2]
[365366190,1749619850448,-150.0,0.00016711,2]
[365366191,1749619850457,-1617.42526857,0.00016734,2]
[365366192,1749619850877,-50.04397702,0.00016438,2]
[365366193,1749619850888,-349.82070006,0.00016438,2]
[365366194,1749619850899,-322.72521309,0.00016438,2]
[365366195,1749619850911,-167.27478691,0.00016438,2]
[365366196,1749619850920,-490.0,0.00016602,2]
[365366197,1749619850930,-490.0,0.00016602,2]
[365366198,1749619850940,-6439.60976645,0.00016734,2]
[365366199,1749619850949,-196.38629123,0.00016734,2]
[365366200,1749619850959,-2135.91406501,0.00016734,2]
[365366201,1749619850969,-150.0,0.00016739,2]
[365366202,1749619850979,-150.0,0.00016766,2]
[365366203,1749619850989,-490.0,0.00016767,2]
[365366204,1749619850998,-480.0,0.00016767,2]
[365366205,1749619851008,-250.0,0.00016767,2]
[365366206,1749619851018,-480.0,0.00016767,2]
[365366207,1749619851028,-480.0,0.00016767,2]
[365366208,1749619851039,-530.90112065,0.00016767,2]
[365366209,1749619851048,-480.0,0.00016767,2]
[365366210,1749619851058,-480.0,0.00016767,2]
[365366211,1749619851068,-456.93799492,0.00016767,2]
[365366212,1749619851079,-442.55618895,0.00016767,2]
[365366213,1749619851089,-79.06239408,0.00016767,2]
[365366214,1749619851101,-161.78444359,0.00016767,2]
[365366215,1749619851111,-480.0,0.00016767,2]
[365366216,1749619851121,-450.86262835,0.00016767,2]
[365366217,1749619851131,-420.0,0.00016767,2]
[365366218,1749619851140,-480.0,0.00016767,2]
[365366219,1749619851150,-457.65544619,0.00016767,2]
[365366220,1749619851160,-437.31008101,0.00016767,2]
[365366221,1749619851170,-446.12775175,0.00016767,2]
[365366222,1749619851180,-450.0,0.00016767,2]
[365366223,1749619851190,-345.28470569,0.00016767,2]
[365366224,1749619851200,-450.0,0.00016767,2]
[365366225,1749619851210,-490.0,0.00016767,2]
[365366226,1749619851220,-480.0,0.00016767,2]
[365366227,1749619851230,-279.20660481,0.00016767,2]
[365366228,1749619851240,-480.0,0.00016767,2]
[365366229,1749619851250,-490.0,0.00016767,2]
[365366230,1749619851259,-490.0,0.00016767,2]
[365366231,1749619851269,-490.0,0.00016767,2]
[365366232,1749619851279,-490.0,0.00016767,2]
[365366233,1749619851436,-493.58378603,0.00016767,2]